bitfinex/quotes_ETHUSD_20240731
["timestamp","ask_amount","ask_price","bid_price","bid_amount"]
[1722444792693,3.03125,3299.0,3298.4,3.03171]
[1722444792982,3.03143,3298.8,3298.4,0.606351]
[1722444793187,3.03143,3298.8,3298.1,3.03201]
[1722444793344,3.03127,3299.0,3298.3,3.03178]
[1722444793546,3.0314,3298.8,3298.3,3.03178]
[1722444795245,3.03127,3299.0,3298.4,3.03174]
[1722444795513,3.03127,3299.0,3297.8,10.32228]
[1722444795514,3.0316,3298.6,3297.9,3.03215]
[1722444795724,3.03148,3298.8,3298.2,3.0319]
[1722444795899,3.03133,3298.9,3298.4,3.03177]
[1722444796197,3.03107,3299.2,3298.5,3.09224634]
[1722444796399,3.03127,3299.0,3298.6,0.61239463]
[1722444796614,3.03128,3299.0,3298.6,0.61239463]
[1722444796821,6.06258,3299.0,3298.7,0.0439416]
[1722444797011,3.03131,3298.9,3298.7,0.0439416]
[1722444797173,3.0312,3299.1,3298.7,0.0439416]
[1722444797377,7.46189,3299.5,3298.7,0.0439416]
[1722444797378,3.03129,3299.0,3298.7,0.0439416]
[1722444798179,3.03105,3299.2,3298.7,0.0439416]
[1722444798375,3.0313,3299.0,3298.7,0.0439416]
[1722444798610,3.03127,3299.0,3298.7,0.0439416]
[1722444799220,3.03108,3299.2,3298.7,0.0439416]
[1722444799221,3.03114,3299.1,3298.7,0.0439416]
[1722444799992,3.03089,3299.4,3298.7,3.51090042]
[1722444800305,3.03089,3299.4,3298.7,0.47942042]
[1722444800516,3.03089,3299.4,3298.7,0.10456816]
[1722444800696,3.03096,3299.3,3298.7,3.0753816]
[1722444800899,3.03096,3299.3,3298.8,0.06062145]
[1722444801100,3.03105,3299.2,3298.9,0.04418182]
[1722444801600,3.03089,3299.4,3298.9,0.04418182]
[1722444802238,3.03094,3299.3,3298.9,0.04418182]
[1722444802526,2.72704,3299.3,3298.9,0.35780515]
[1722444802829,3.03101,3299.3,3298.9,0.35780515]
[1722444803031,3.03101,3299.3,3298.9,0.04418182]
[1722444803235,3.03104,3299.2,3298.9,0.04418182]
[1722444804098,3.03101,3299.3,3298.9,0.04418182]
[1722444804307,3.03101,3299.3,3298.7,3.09210157]
[1722444804494,3.03101,3299.3,3298.8,0.10484046]
[1722444804689,3.03089,3299.4,3298.8,3.13622046]
[1722444804895,6.06182,3299.4,3298.8,3.13622046]
[1722444805141,3.03096,3299.3,3298.8,0.10484046]
[1722444805451,3.03059,3299.7,3298.8,0.04421888]
[1722444805661,3.03103,3299.2,3298.8,0.10484048]
[1722444805834,3.0309,3299.4,3298.9,3.03131]
[1722444805995,3.0309,3299.4,3298.8,0.10484048]
[1722444806327,3.0309,3299.4,3298.9,0.04418182]
[1722444806495,3.03105,3299.2,3298.9,0.04418182]
[1722444807118,3.03072,3299.6,3298.9,0.41904028]
[1722444807319,3.03088,3299.4,3298.9,0.41904028]
[1722444807536,3.03095,3299.3,3298.9,0.41904028]
[1722444807792,3.03095,3299.3,3298.9,0.37485846]
[1722444808101,3.03095,3299.3,3299.0,0.04413007]
[1722444809414,6.8148,3299.8,3299.0,0.04413007]
[1722444809415,3.03081,3299.5,3299.0,3.42643987]
[1722444809741,6.06164,3299.5,3299.0,3.42643987]
[1722444810050,3.03081,3299.5,3299.0,0.39522987]
[1722444810252,3.03094,3299.3,3299.0,0.39522987]
[1722444810858,3.03081,3299.5,3299.0,0.39522987]
[1722444811228,3.03081,3299.5,3299.0,0.3510998]
[1722444811656,4.4311,3299.8,3298.0,7.064305]
[1722444811657,3.03109,3299.2,3298.4,3.03174]
[1722444811868,3.03109,3299.2,3298.6,3.03158]
[1722444812175,3.0308,3299.5,3298.7,3.07409659]
[1722444812463,3.03099,3299.3,3298.7,0.04262659]
[1722444812634,3.03099,3299.3,3298.8,0.30741266]
[1722444812828,4.4311,3299.8,3298.7,0.04262659]
[1722444812829,3.03119,3299.1,3298.7,0.04262659]
[1722444813028,3.03119,3299.1,3298.3,3.03186]
[1722444813029,3.03119,3299.1,3298.9,0.04255247]
[1722444813337,3.03119,3299.1,3299.0,0.04251541]
[1722444813519,3.03119,3299.1,3298.5,3.03167]
[1722444813870,3.03119,3299.1,3299.0,0.04251541]
[1722444814164,3.03119,3299.1,3298.1,8.34088]
[1722444814165,0.2337674,3299.1,3298.1,8.34088]
[1722444814384,0.2337674,3299.0,3297.6,2.3783]
[1722444814558,0.2337674,3299.0,3297.8,3.0323]
[1722444814559,3.03179,3298.4,3297.8,3.0323]
[1722444814716,3.0316,3298.6,3297.8,3.03225]
[1722444814919,3.0316,3298.6,3298.0,3.03206]
[1722444815151,3.0316,3298.6,3298.1,3.40194564]
[1722444815365,3.0316,3298.6,3298.1,0.36990564]
[1722444815574,3.0316,3298.6,3298.1,0.3092696]
[1722444815741,3.0316,3298.6,3297.7,3.03234]
[1722444815742,3.03179,3298.4,3297.7,3.03234]
[1722444815935,3.0319,3298.3,3297.7,3.03234]
[1722444817185,3.032,3298.2,3297.6,2.3783]
[1722444817334,3.032,3298.2,3297.6,8.41074]
[1722444817535,2.7281,3298.2,3297.6,8.41074]
[1722444817725,2.7281,3298.2,3297.7,1.144325]
[1722444818471,2.7281,3298.2,3297.6,8.41074]
[1722444818472,3.03181,3298.4,3297.6,5.3783]
[1722444818787,3.03181,3298.4,3297.7,3.03235]
[1722444819966,3.03192,3298.3,3297.7,3.03235]
[1722444820483,3.032,3298.2,3297.6,5.3783]
[1722444820638,3.032,3298.2,3297.6,6.03244]
[1722444820832,3.032,3298.2,3297.7,3.938885]
[1722444821185,3.03181,3298.4,3297.9,3.0322]
[1722444821334,3.03145,3298.8,3298.0,3.03213]
[1722444821677,3.26500141,3298.7,3298.1,3.03199]
[1722444821891,3.03164,3298.6,3298.0,3.09275802]
[1722444822165,3.03164,3298.6,3298.1,0.6124938]
[1722444822738,3.03156,3298.7,3298.1,0.6124938]
[1722444823089,3.03156,3298.7,3298.1,3.6445338]
[1722444823294,3.03156,3298.7,3298.2,3.03194]
[1722444823887,3.03134,3298.9,3298.2,3.03194]
[1722444824068,3.03145,3298.8,3298.3,0.36444338]
[1722444824587,3.26498519,3298.7,3298.3,0.36444338]
[1722444824729,3.03141,3298.8,3298.3,0.36444338]
[1722444824935,0.23342235,3298.7,3298.3,0.36444338]
[1722444825178,3.03141,3298.8,3298.3,3.39628338]
[1722444825390,3.03141,3298.8,3298.4,0.64887961]
[1722444825688,3.03141,3298.8,3298.3,0.36444338]
[1722444825891,3.03125,3299.0,3298.3,0.36444338]
[1722444826065,0.23345148,3298.9,3298.5,3.03165]
[1722444826234,3.03118,3299.1,3298.5,3.09227626]
[1722444826572,0.23342259,3299.0,3298.6,3.07324875]
[1722444826867,3.50577433,3300.2,3298.6,6.72131625]
[1722444826868,3.031,3299.3,3298.6,6.72131625]
[1722444827166,3.031,3299.3,3298.7,3.03149]
[1722444827167,0.23338935,3299.2,3298.7,3.03149]
[1722444827339,0.23338935,3299.2,3298.6,0.65822625]
[1722444827340,3.03124,3299.0,3298.8,0.04153602]
[1722444827546,3.03124,3299.0,3298.6,0.6165575]
[1722444827728,3.03099,3299.3,3298.9,0.04148136]
[1722444827931,3.26450509,3299.2,3298.7,0.37088037]
[1722444828269,3.26454509,3299.1,3299.0,0.04144431]
[1722444828566,3.26454509,3299.1,3299.0,0.04141501]
[1722444828770,0.23340509,3299.1,3298.2,3.03192]
[1722444828977,3.03146,3298.8,3298.2,3.03192]
[1722444829165,3.03173,3298.5,3297.9,12.6181]
[1722444829483,3.03186,3298.4,3297.7,3.03234]
[1722444829847,3.03186,3298.4,3297.8,3.03227]
[1722444830468,3.03186,3298.4,3297.5,3.03255]
[1722444830959,3.03192,3298.3,3297.7,3.03235]
[1722444831285,3.03174,3298.5,3297.7,3.03235]
[1722444831452,0.23358293,3298.4,3298.0,3.03208]
[1722444831655,0.23356874,3298.3,3297.8,3.335475]
[1722444831899,3.03173,3298.5,3297.8,0.303235]
[1722444832066,3.03173,3298.5,3297.9,3.3657705]
[1722444832067,0.23357592,3298.4,3297.9,3.3657705]
[1722444832266,0.23357926,3298.3,3297.9,3.3657705]
[1722444832467,2.72788,3298.4,3297.9,3.3657705]
[1722444832669,3.03218,3298.0,3297.4,8.43323]
[1722444833005,0.23372574,3297.9,3297.4,8.43323]
[1722444833157,3.03218,3298.0,3297.5,3.03259]
[1722444833503,0.23371595,3297.9,3297.4,5.4006]
[1722444833683,0.23370306,3297.8,3297.4,5.4006]
[1722444833889,3.03218,3298.0,3297.5,0.843329]
[1722444834095,3.26598147,3297.9,3297.4,3.0]
[1722444834403,3.26607147,3297.8,3297.0,5.3218]
[1722444834608,3.03255,3297.6,3297.0,5.3218]
[1722444834788,3.03255,3297.6,3297.0,3.033]
[1722444834789,0.23375147,3297.5,3297.0,3.033]
[1722444835171,0.23375147,3297.5,3297.0,3.03299]
[1722444835566,3.03255,3297.6,3297.0,3.336289]
[1722444835766,0.23331301,3297.5,3296.8,3.03321]
[1722444835990,3.03278,3297.3,3296.7,3.03333]
[1722444836168,3.03254,3297.6,3296.7,3.03333]
[1722444836368,3.03275,3297.4,3296.8,3.03318]
[1722444836563,3.03275,3297.4,3296.7,3.03333]
[1722444836781,3.03279,3297.3,3296.8,0.545603]
[1722444837176,4.4311,3298.1,3295.9,2.4587]
[1722444837382,3.03292,3297.2,3296.4,3.03361]
[1722444837600,3.03307,3297.0,3296.4,3.03361]
[1722444837901,3.03302,3297.1,3296.3,3.03362]
[1722444838081,3.03316,3296.9,3296.4,0.606737]
[1722444838258,3.03309,3297.0,3296.0,3.03389]
[1722444838458,3.03333,3296.7,3296.1,3.03388]
[1722444838655,3.03341,3296.7,3296.2,3.0]
[1722444838881,3.03341,3296.7,3296.1,3.0]
[1722444839072,3.03321,3296.9,3296.1,6.03381]
[1722444839270,3.0333,3296.8,3296.2,3.94054]
[1722444839574,3.033,3297.1,3296.2,4.00117961]
[1722444839771,3.03266,3297.5,3296.9,3.03313]
[1722444839982,2.4309,3297.8,3296.9,3.03313]
[1722444840160,3.03257,3297.6,3297.0,3.03305]
[1722444840562,3.03254,3297.6,3296.7,3.03329]
[1722444840792,3.03274,3297.4,3296.8,0.303329]
[1722444841205,6.0655,3297.4,3296.8,0.303329]
[1722444841418,3.03278,3297.3,3296.9,0.03781732]
[1722444841618,3.03255,3297.6,3296.9,0.03781732]
[1722444842166,3.03283,3297.3,3296.9,0.03781732]
[1722444842402,3.03303,3297.1,3296.5,3.0335]
[1722444842564,3.03315,3296.9,3296.6,0.03792864]
[1722444842893,3.03303,3297.1,3296.3,3.03361]
[1722444843098,3.03303,3297.1,3296.7,0.03789153]
[1722444843270,3.03303,3297.1,3296.4,0.060666]
[1722444843471,3.03311,3297.0,3296.8,0.03785443]
[1722444843674,3.03329,3296.8,3296.2,0.90677]
[1722444843885,3.03273,3297.4,3296.9,0.03781732]
[1722444843886,3.033,3297.1,3296.9,0.03781732]
[1722444844066,3.033,3297.1,3296.3,3.03364]
[1722444844270,3.033,3297.1,3296.5,3.03349]
[1722444844471,3.03306,3297.0,3296.4,0.03800287]
[1722444844695,3.033,3297.1,3296.6,0.03792864]
[1722444844996,3.033,3297.1,3296.4,0.70727023]
[1722444844997,3.033,3297.1,3296.7,0.03789153]
[1722444845184,7.46372,3297.5,3296.7,3.03332]
[1722444845392,5.4309,3297.8,3297.0,3.03303]
[1722444845627,5.4309,3297.8,3296.8,0.09851146]
[1722444845628,3.0326,3297.5,3297.1,0.03774312]
[1722444845847,3.03247,3297.7,3297.1,0.03774312]
[1722444846016,3.03247,3297.7,3296.9,0.06065718]
[1722444846343,3.03247,3297.7,3297.0,3.03301]
[1722444846529,3.03261,3297.5,3297.1,0.03774312]
[1722444846742,3.03255,3297.6,3297.0,3.03298]
[1722444846940,3.03255,3297.6,3297.1,0.03774312]
[1722444847149,5.46327,3297.8,3297.2,3.03287]
[1722444847365,3.03267,3297.5,3297.3,0.03766892]
[1722444847649,3.03277,3297.4,3296.8,3.03322]
[1722444848025,3.03279,3297.3,3296.8,3.03322]
[1722444848437,3.03279,3297.3,3296.6,3.03334]
[1722444848615,3.03289,3297.2,3296.7,0.60668]
[1722444849253,3.03279,3297.3,3296.7,3.63993]
[1722444849549,3.03246,3297.7,3297.0,3.03298]
[1722444849738,3.03246,3297.7,3296.4,3.0336]
[1722444849739,3.03265,3297.5,3296.9,3.03307]
[1722444850048,3.03241,3297.7,3297.1,3.03291]
[1722444850220,3.03241,3297.7,3297.1,3.0329]
[1722444850553,3.03241,3297.7,3297.1,3.33619]
[1722444851410,2.3535,3298.2,3297.5,3.03257]
[1722444851610,3.03175,3298.5,3297.6,3.03248]
[1722444851814,5.5177,3298.6,3297.5,3.03257]
[1722444851815,3.03195,3298.2,3297.7,3.03238]
[1722444852042,3.03187,3298.3,3297.7,3.03236]
[1722444852246,8.54933,3298.6,3297.8,3.03227]
[1722444852445,3.03182,3298.4,3297.8,3.03227]
[1722444853054,3.03145,3298.8,3297.9,3.03222]
[1722444853260,3.03159,3298.6,3298.1,3.03198]
[1722444854123,6.06325,3298.6,3297.9,3.03222]
[1722444854336,3.03159,3298.6,3298.0,3.335332]
[1722444854715,3.03164,3298.6,3298.0,3.335332]
[1722444854920,3.0318,3298.4,3298.0,0.303222]
[1722444855519,3.03164,3298.6,3298.0,3.335292]
[1722444856059,3.03161,3298.6,3298.0,3.335292]
[1722444856414,3.03175,3298.5,3298.1,0.03743367]
[1722444857054,3.03156,3298.7,3298.1,3.06946367]
[1722444857263,3.03133,3298.9,3298.3,3.03184]
[1722444857557,3.03146,3298.8,3298.3,3.03186]
[1722444857735,3.03146,3298.8,3298.4,0.03732245]
[1722444858059,3.0313,3299.0,3298.4,0.03732245]
[1722444858356,5.51887,3299.1,3298.4,0.03732245]
[1722444858357,3.03151,3298.7,3298.4,0.03732245]
[1722444858557,3.03133,3298.9,3298.4,0.3442417]
[1722444858721,3.03133,3298.9,3298.4,0.30691925]
[1722444859230,3.03117,3299.1,3298.5,0.03699889]
[1722444859430,6.06271,3298.9,3298.5,0.03699889]
[1722444859632,7.46211,3299.3,3298.5,0.09763087]
[1722444859849,4.4311,3299.3,3298.6,0.27124501]
[1722444860031,4.4311,3299.3,3299.0,3.03117]
[1722444860231,3.03068,3299.6,3299.0,3.03117]
[1722444860435,3.03068,3299.6,3299.1,0.03672392]
[1722444860640,3.03051,3299.8,3299.2,3.03103]
[1722444860867,0.23329455,3299.7,3299.3,3.06747878]
[1722444861027,3.03039,3299.9,3299.3,0.03653878]
[1722444861228,3.03039,3299.9,3299.2,3.031]
[1722444861229,0.23356301,3299.8,3299.2,3.031]
[1722444861462,3.03039,3299.9,3299.3,0.03602139]
[1722444861777,3.26403392,3299.8,3299.3,0.03602139]
[1722444862063,0.23354392,3299.7,3299.2,3.031]
[1722444862258,3.03049,3299.8,3299.4,0.03598435]
[1722444862465,2.72659,3299.8,3299.3,0.03602139]
[1722444862655,2.72659,3299.8,3299.5,0.0359473]
[1722444862855,2.72659,3299.8,3299.4,0.03598435]
[1722444863460,2.72659,3299.8,3299.0,3.03115]
[1722444863765,2.72659,3299.8,3299.1,3.0311]
[1722444864066,2.72659,3299.8,3299.1,3.0671955]
[1722444864225,3.03039,3299.9,3299.3,3.03089]
[1722444864626,3.03039,3299.9,3299.4,0.03598435]
[1722444865059,3.0305,3299.8,3299.4,0.03598435]
[1722444865262,3.0305,3299.8,3299.1,3.03104]
[1722444865463,3.0305,3299.8,3299.1,3.63727]
[1722444865674,3.0305,3299.8,3299.2,0.03592699]
[1722444865881,3.0305,3299.8,3299.2,3.06694699]
[1722444866048,3.03038,3300.0,3299.3,3.03093]
[1722444866249,3.03025,3300.1,3299.4,0.03585289]
[1722444866250,3.03039,3299.9,3299.4,0.03585289]
[1722444866635,6.06054,3300.1,3299.4,0.03585289]
[1722444866837,3.03036,3300.0,3299.4,3.06664289]
[1722444867153,3.03045,3299.9,3299.4,0.03585289]
[1722444867367,3.03033,3300.0,3299.4,0.03585289]
[1722444867748,3.03044,3299.9,3299.2,0.06061479]
[1722444867960,3.03044,3299.9,3299.5,0.03581585]
[1722444868176,3.03044,3299.9,3299.3,3.03089]
[1722444868372,3.03044,3299.9,3299.6,0.0357788]
[1722444868559,3.03044,3299.9,3299.3,3.03089]
[1722444868750,3.03044,3299.9,3299.7,0.03574176]
[1722444869087,3.03044,3299.9,3299.8,0.03570472]
[1722444869495,3.03044,3299.9,3299.3,3.03087]
[1722444869713,4.4311,3300.2,3299.3,3.03087]
[1722444869714,7.46124,3300.2,3299.3,0.90203941]
[1722444870008,7.46124,3300.2,3299.7,3.03055]
[1722444870151,4.4311,3300.2,3299.5,3.03071]
[1722444870502,4.4311,3300.2,3299.7,3.03055]
[1722444870864,4.4311,3300.2,3299.8,0.03566967]
[1722444871292,4.4311,3300.2,3299.7,3.03052]
[1722444871507,4.4311,3300.2,3299.7,3.636643]
[1722444871677,4.4311,3300.2,3299.8,0.03537468]
[1722444872204,4.4311,3300.2,3299.7,3.636643]
[1722444872403,4.4311,3300.2,3299.9,0.03533764]
[1722444872707,4.4311,3300.2,3300.0,0.03530061]
[1722444872879,6.0598,3300.5,3300.0,0.03530061]
[1722444873204,6.0598,3300.5,3299.9,3.03039]
[1722444873419,3.02988,3300.5,3299.9,3.03039]
[1722444873634,6.0598,3300.5,3299.9,3.03039]
[1722444873832,3.03002,3300.4,3299.8,3.03045]
[1722444874033,3.03008,3300.3,3299.7,3.636673]
[1722444874303,3.03008,3300.3,3299.8,0.03403033]
[1722444874669,3.03008,3300.3,3299.7,6.72777719]
[1722444874869,3.02987,3300.5,3299.9,0.03399329]
[1722444875067,3.02987,3300.5,3299.9,3.03034]
[1722444875306,3.02987,3300.5,3299.9,6.06064]
[1722444875630,3.03021,3300.1,3300.0,0.03395625]
[1722444875931,3.03015,3300.2,3298.9,3.03127]
[1722444876093,3.03015,3300.2,3300.0,0.03395625]
[1722444876094,6.06042,3300.1,3300.0,0.03395625]
[1722444876431,3.0309,3299.4,3298.8,3.0]
[1722444876589,3.0309,3299.4,3298.8,6.03134]
[1722444876791,3.0309,3299.4,3298.9,0.03436377]
[1722444876992,3.03111,3299.2,3298.9,0.03436377]
[1722444877330,3.03111,3299.2,3298.6,3.30277501]
[1722444877331,3.03111,3299.2,3298.6,3.30276501]
[1722444877526,2.72721,3299.2,3299.0,0.03432671]
[1722444877726,2.72721,3299.2,3298.6,3.30276501]
[1722444877906,2.72721,3299.2,3299.1,0.03428965]
[1722444878229,3.03129,3299.0,3298.4,2.4882]
[1722444878433,3.03141,3298.8,3298.2,3.0319]
[1722444878637,3.0315,3298.7,3298.1,3.03199]
[1722444879122,3.03159,3298.6,3298.1,3.03199]
[1722444879293,3.03159,3298.6,3298.1,0.58723663]
[1722444879498,3.03159,3298.6,3298.0,3.03211]
[1722444879694,3.03139,3298.9,3297.5,7.29]
[1722444879912,3.03192,3298.3,3297.5,7.29]
[1722444880132,3.0318,3298.4,3297.7,3.03241]
[1722444880330,3.0316,3298.6,3297.7,3.03241]
[1722444880631,3.03178,3298.4,3297.8,3.335551]
[1722444880833,3.03186,3298.3,3297.8,0.303241]
[1722444881036,3.03186,3298.3,3297.5,10.32256]
[1722444881612,3.03186,3298.3,3297.7,3.03241]
[1722444881836,3.03186,3298.3,3297.7,6.06474]
[1722444882036,3.03177,3298.5,3297.8,3.0323]
[1722444882237,3.03177,3298.4,3297.8,3.0323]
[1722444882558,3.03177,3298.4,3297.9,0.606463]
[1722444883437,3.03177,3298.4,3297.9,3.638683]
[1722444883635,3.03162,3298.6,3297.9,3.638683]
[1722444883846,3.03162,3298.6,3297.9,0.606463]
[1722444884157,3.03183,3298.4,3297.9,0.606463]
[1722444884545,3.03162,3298.6,3298.0,0.3638763]
[1722444885247,3.03162,3298.6,3298.1,3.03203]
[1722444885248,3.03165,3298.6,3298.1,3.03203]
[1722444885448,3.03163,3298.6,3298.0,0.3638763]
[1722444885655,3.03179,3298.4,3298.0,0.3638763]
[1722444885838,3.03179,3298.4,3297.9,0.606463]
[1722444886442,3.03204,3298.2,3298.0,0.03564847]
[1722444887130,3.03204,3298.2,3297.6,3.03249]
[1722444887358,3.03204,3298.2,3298.1,0.03562015]
[1722444887531,3.03204,3298.2,3297.6,3.03249]
[1722444887870,3.03204,3298.2,3298.1,0.03562015]
[1722444888031,3.03204,3298.2,3297.7,0.303249]
[1722444888231,3.03204,3298.2,3297.8,0.03573139]
[1722444888452,3.03223,3297.9,3297.8,0.03573139]
[1722444888655,3.03252,3297.6,3297.1,0.30329]
[1722444888970,3.0326,3297.5,3297.2,0.36741047]
[1722444889572,3.0326,3297.5,3297.2,0.03377647]
[1722444889735,3.03271,3297.4,3297.2,0.03377647]
[1722444890554,3.03258,3297.6,3297.2,0.03377647]
[1722444890778,3.03226,3297.9,3297.2,0.03377647]
[1722444890978,3.03252,3297.6,3297.2,0.03377647]
[1722444891282,3.03252,3297.6,3297.3,0.33699765]
[1722444891484,3.03252,3297.6,3297.4,0.03370811]
[1722444891684,3.03252,3297.6,3297.1,0.30329]
[1722444891981,3.0326,3297.5,3297.2,0.0337823]
[1722444892279,6.06528,3297.5,3297.2,0.0337823]
[1722444892444,2.7287,3297.5,3297.2,0.0337823]
[1722444893481,3.03227,3297.9,3297.2,0.0337823]
[1722444893783,3.03244,3297.7,3297.2,0.0337823]
[1722444893990,6.06494,3297.7,3297.3,0.33700223]
[1722444894143,3.03256,3297.6,3297.3,0.33700223]
[1722444894484,3.03256,3297.6,3297.1,0.30329]
[1722444894485,3.0326,3297.5,3297.4,0.03370811]
[1722444894658,3.03271,3297.4,3297.1,0.30329]
[1722444895050,3.03251,3297.6,3297.2,0.0337823]
[1722444895249,3.03203,3298.2,3297.2,0.0337823]
[1722444895471,5.30263,3297.9,3297.2,0.0337823]
[1722444895685,3.0329,3297.2,3296.7,7.29]
[1722444895887,3.0329,3297.2,3296.8,0.03407943]
[1722444896102,3.0329,3297.2,3296.7,7.29]
[1722444896405,3.0329,3297.2,3296.9,0.03404232]
[1722444896600,3.03273,3297.4,3296.8,0.09473582]
[1722444896754,3.03273,3297.4,3297.0,0.03400522]
[1722444896948,3.03273,3297.4,3296.9,0.7725159]
[1722444897149,3.03255,3297.6,3297.1,0.03396812]
[1722444897367,3.03255,3297.6,3297.0,3.06705522]
[1722444897593,3.03267,3297.5,3297.2,0.03393102]
[1722444897901,3.03267,3297.5,3296.9,0.79912903]
[1722444897902,3.0327,3297.4,3297.3,0.03389393]
[1722444898052,3.03255,3297.6,3297.3,0.03389393]
[1722444898246,3.03267,3297.5,3296.9,0.79912903]
[1722444898472,3.03267,3297.5,3297.0,0.41723512]
[1722444899352,4.4311,3298.0,3297.4,3.03263]
[1722444899555,4.4311,3298.0,3297.7,3.03241]
[1722444899900,4.4311,3298.0,3297.8,0.03391261]
[1722444900099,3.032,3298.2,3297.8,0.03391261]
[1722444900308,3.03163,3298.6,3297.9,0.30663226]
[1722444900471,3.03163,3298.6,3297.8,0.09455248]
[1722444901170,3.03173,3298.5,3297.9,3.03215]
[1722444901365,3.03163,3298.6,3297.9,3.03214]
[1722444901570,3.03163,3298.6,3298.0,0.09440408]
[1722444901874,3.03163,3298.6,3298.0,0.03376846]
[1722444902211,3.03143,3298.8,3298.2,3.03188]
[1722444902381,3.03143,3298.8,3298.3,3.03184]
[1722444902582,7.4311,3299.2,3298.3,0.03365723]
[1722444902921,3.03129,3299.0,3298.3,3.12612754]
[1722444903532,3.03109,3299.2,3298.6,3.03158]
[1722444903674,3.03109,3299.2,3298.6,3.334738]
[1722444903877,3.03109,3299.2,3298.7,0.0333311]
[1722444904076,3.03109,3299.2,3298.7,3.0648111]
[1722444905170,3.0309,3299.4,3298.7,6.0962211]
[1722444905493,3.0309,3299.4,3298.8,3.73196087]
[1722444905909,3.0309,3299.4,3298.9,0.03314913]
[1722444906726,3.03103,3299.2,3298.9,0.03314913]
[1722444907307,3.0309,3299.4,3298.9,0.03314913]
[1722444907544,2.727,3299.4,3298.9,0.03314913]
[1722444907765,2.727,3299.4,3299.0,0.3704457]
[1722444908130,2.727,3299.4,3299.1,0.03301673]
[1722444908346,5.75794,3299.4,3299.1,0.03301673]
[1722444908568,2.727,3299.4,3299.1,0.03301673]
[1722444908951,3.03069,3299.6,3299.1,0.03301673]
[1722444909268,3.03053,3299.8,3299.2,3.03103]
[1722444909428,3.03053,3299.8,3299.2,3.64660944]
[1722444909638,3.03053,3299.8,3299.3,0.03290766]
[1722444909957,3.03077,3299.5,3299.2,0.61557944]
[1722444910167,3.03077,3299.5,3299.4,0.03287061]
[1722444910327,4.4311,3299.9,3299.3,0.03290766]
[1722444910535,3.03101,3299.3,3298.6,3.03154]
[1722444910763,3.03104,3299.2,3298.6,3.03154]
[1722444910968,3.03104,3299.2,3298.7,0.33572135]
[1722444911262,3.0312,3299.1,3298.7,0.33572135]
[1722444911420,3.03101,3299.3,3298.7,0.03256735]
[1722444911847,3.03103,3299.2,3298.7,0.03256735]
[1722444912259,3.03114,3299.1,3298.7,0.05256735]
[1722444912411,3.03062,3299.7,3298.7,0.05256735]
[1722444912617,3.03101,3299.3,3298.7,0.05256735]
[1722444912880,3.03101,3299.3,3298.7,0.36097709]
[1722444913159,3.03115,3299.1,3298.7,0.36097709]
[1722444913394,3.03122,3299.0,3298.7,0.05256735]
[1722444914026,3.03111,3299.2,3298.7,0.05256735]
[1722444914572,3.03113,3299.1,3298.7,0.05256735]
[1722444914750,3.0314,3298.8,3298.7,0.05256735]
[1722444915464,6.0628,3298.8,3298.7,0.05256735]
[1722444915675,6.972206,3298.8,3298.7,0.05256735]
[1722444915815,6.972206,3298.8,3298.7,0.02]
[1722444916044,6.972206,3298.8,3298.7,0.05268974]
[1722444916274,6.972206,3298.8,3298.7,0.02]
[1722444916771,3.0314,3298.8,3298.7,0.05168932]
[1722444916930,3.0314,3298.8,3298.7,0.02]
[1722444917263,3.0314,3298.8,3298.7,0.05168932]
[1722444917477,6.0628,3298.8,3298.7,0.05168932]
[1722444917767,3.0314,3298.8,3298.7,0.05168932]
[1722444918742,6.0628,3298.8,3298.7,0.05168932]
[1722444919453,6.0628,3298.8,3298.7,0.02]
[1722444919659,6.972205,3298.8,3298.7,0.02]
[1722444920239,6.0628,3298.8,3298.7,0.02]
[1722444921410,6.2962803,3298.8,3298.7,0.02]
[1722444922576,5.9923803,3298.8,3298.7,0.02]
[1722444924214,9.0237803,3298.8,3298.7,0.02]
[1722444924439,17.4313803,3298.8,3298.7,0.02]
[1722444924613,19.17451833,3298.8,3298.7,0.02]
[1722444924919,3.03168,3298.5,3297.3,2.4616]
[1722444925117,0.2334803,3298.4,3297.4,2.3145]
[1722444925414,4.4311,3298.5,3297.4,2.3145]
[1722444925415,7.46279,3298.5,3297.7,3.03233]
[1722444925622,7.46279,3298.5,3297.7,3.03236]
[1722444925623,3.03192,3298.3,3297.7,3.03236]
[1722444925916,3.03192,3298.3,3297.8,0.03033097]
[1722444926097,3.03195,3298.2,3297.8,0.03033097]
[1722444926723,3.0321,3298.1,3297.8,0.03033097]
[1722444927022,3.03195,3298.2,3297.8,0.03033097]
[1722444927345,3.03195,3298.2,3297.4,5.34717]
[1722444927540,3.03195,3298.2,3297.9,0.03029389]
[1722444927674,3.03186,3298.3,3297.5,3.870543]
[1722444928030,3.03186,3298.3,3297.6,0.03040514]
[1722444928031,3.03196,3298.2,3297.6,0.03040514]
[1722444928185,3.03196,3298.2,3297.6,3.06285514]
[1722444928383,3.03182,3298.4,3297.7,3.03234]
[1722444928704,7.46282,3298.5,3297.8,0.33660548]
[1722444928902,3.03187,3298.3,3297.8,0.33660548]
[1722444929103,3.03202,3298.2,3297.8,0.33660548]
[1722444929286,3.03205,3298.1,3297.8,0.03033097]
[1722444929723,3.03187,3298.3,3297.5,3.09318548]
[1722444930026,3.03187,3298.3,3297.8,3.03231]
[1722444930193,3.03187,3298.3,3297.6,3.06285514]
[1722444930391,3.03205,3298.1,3297.9,0.03029389]
[1722444930719,3.03205,3298.1,3297.6,3.03245]
[1722444930921,3.03205,3298.1,3298.0,0.03025681]
[1722444931132,3.03205,3298.1,3297.7,0.303245]
[1722444931272,3.03214,3298.0,3297.7,0.303245]
[1722444931472,3.03214,3298.0,3297.8,0.03033097]
[1722444931708,3.03214,3298.0,3297.4,8.37973]
[1722444931885,3.03196,3298.2,3297.5,3.06296223]